Workbook

Sheet Instructions
A1: गुरुजनों सादर नमस्कार
A3: आपकी सेवार्थ मेरा एक और छोटा सा प्रयास ----------------
A5: CASH BOOK
A7: कैश बुक भरते समय होने वाली गलतियाँ जैसे बैलेंस का न मिलना, जोड़ घटाव में गलती आदि से बचने के लिए मैने यह एक प्रयास किया है हो सकता है इसमें कोई कमी हो तो आप विद्वजनो से निवेदन है की आप मुझे इसमें जो करेक्शन्स करने है उनके बारे में अवगत करावे ताकि मै इसे और सुविधाजनक बना सकू |
A9: इसे प्रयोग में लेने का तरीका
A11: सर्वप्रथम Cash Book Mad वाली शीट में आप अपनी कैश बुक में प्रचलित मद लिखे अगर लिखे गये मदों के अलावा भी आपके मद है तो आप लिस्ट में जहा other लिखा है वहा पर ऐड कर सकते है |
A13: इसके बाद Opening Balance वाली शीट में आप Blue Color की cells में एंट्री नहीं करे केवल Opening Balance वाले कॉलम में मद के सामने In Bank और Cash में एंट्री करे |
A15: तत्पश्चात Entry वाली शीट में Receipt वाले कोलम में जो राशि जिस मद में आई है वो मद सेलेक्ट करके विवरण लिखे तथा राशि का इन्द्राज करे | Payment वाले कोलम में जो राशि आपने खर्च की उसका मद सेलेक्ट करके विवरण लिखे तथा राशि का इन्द्राज करे |
A17: अब आपकी कैश बुक तैयार है आप Receipt और Payment वाली शीट्स का प्रिंट ले सकते है |
A19: Receipt वाली शीट में केवल cash वाले कोलम में एंट्री करे जो राशि कैश में आई है उसका इन्द्राज cash वाले कोलम में करे |बाकी अन्य किसी भी कोलम में एंट्री करने की आवश्यकता नही है |
A21: Payment वाली शीट में केवल cash वाले कोलम में एंट्री करे जिस राशि का पेमेंट आपने कैश में दिया है उसका इन्द्राज cash वाले कोलम में करे |बाकी अन्य किसी भी कोलम में एंट्री करने की आवश्यकता नही है |
B23: For Any Problem you can contact
A29: +91 9166023711 | F29: sspkctakumar@gmail.com

Sheet Cash Book Mad
A1: Government Senior Secondary School, Rooppura
A2: Mad | B2: इस लिस्ट में आप अपनी कैश बुक में प्रचलित मद लिखे अगर लिखे गये मदों के अलावा भी आपके मद है तो आप लिस्ट में जहा other लिखा है वहा पर ऐड कर सकते है |
A3: CSG
A4: Vikas Kosh
A5: Scout Guide
A6: SMC Training
A7: Internet
A8: Cycle and Transport Voucher
A9: Scholarship | G9: Opening Balance भरने के लिए इस आइकॉन पर क्लिक करे |
A10: Science
A11: Gas Subcidy, MDM, Cook-Cum Helper
A12: Bhawan Nirman
A13: Bank Interest
A14: School Repairing
A15: Lab
A16: Game related
A17: Liberary
A18: Electricty/Water Bill
A19: FVC
A20: Other1
A21: Other2
A22: Other3
A23: Other4
A24: Other5
A25: Other6
A26: Other7
A27: Other8
A28: Other9
A29: Other10

Sheet Opening Balance
A1: ='Cash Book Mad'!A1 -> Government Senior Secondary School, Rooppura | K1: Blue Color की cells में एंट्री नहीं करनी है केवल Opening Balance वाले कॉलम मद के सामने वाले कॉलम में In Bank और Cash में एंट्री करे |
A2: Opening Balance Date- | I2: 2020-07-01
A3: क्र.स. | B3: मद | C3: Opening Balance | E3: After Receipt Balance | G3: Payment | I3: Closing Balance (After Payment)
C4: In Bank | D4: Cash | E4: In Bank | F4: Cash | G4: By Bank | H4: Cash | I4: In Bank | J4: Cash
A5: 1 | B5: ='Cash Book Mad'!A3 -> CSG | C5: 0.00 | D5: 550.00 | E5: =IFERROR(HLOOKUP(B5,receipt_entry,27,0),"") -> 50500.00 | F5: =Receipt!Q28 -> 550.00 | G5: =IFERROR(HLOOKUP(B5,payment_entry,25,0),"") -> 5500.00 | H5: =Payment!Q26 -> 0.00 | I5: =IFERROR(E5-G5,"") -> 45000.00 | J5: =F5-H5 -> 550.00
A6: 2 | B6: ='Cash Book Mad'!A4 -> Vikas Kosh | C6: 10226.40 | E6: 10226.40 | G6: 0.00 | I6: =IFERROR(E6-G6,"") -> 10226.40
A7: 3 | B7: ='Cash Book Mad'!A5 -> Scout Guide | C7: 7150.00 | E7: 7150.00 | G7: 0.00 | I7: 7150.00
A8: 4 | B8: ='Cash Book Mad'!A6 -> SMC Training | C8: 0.00 | E8: 0.00 | G8: 0.00 | I8: 0.00
A9: 5 | B9: ='Cash Book Mad'!A7 -> Internet | C9: 3252.00 | E9: 3252.00 | G9: 0.00 | I9: 3252.00
A10: 6 | B10: ='Cash Book Mad'!A8 -> Cycle and Transport Voucher | C10: 20740.00 | E10: 20740.00 | G10: 0.00 | I10: 20740.00
A11: 7 | B11: ='Cash Book Mad'!A9 -> Scholarship | C11: 3600.00 | E11: 3600.00 | G11: 0.00 | I11: 3600.00
A12: 8 | B12: ='Cash Book Mad'!A10 -> Science | C12: 10000.00 | E12: 10000.00 | G12: 0.00 | I12: 10000.00 | L12: Entry (Cr /Dr ) करने के लिए इस आइकॉन पर क्लिक करे |
A13: 9 | B13: ='Cash Book Mad'!A11 -> Gas Subcidy, MDM, Cook-Cum Helper | C13: 60663.42 | E13: 60663.42 | G13: 0.00 | I13: 60663.42
A14: 10 | B14: ='Cash Book Mad'!A12 -> Bhawan Nirman | C14: 0.00
A15: 11 | B15: ='Cash Book Mad'!A13 -> Bank Interest | C15: 32824.72 | E15: 32824.72 | G15: 0.00 | I15: 32824.72
A16: 12 | B16: ='Cash Book Mad'!A14 -> School Repairing | C16: 0.00
A17: 13 | B17: ='Cash Book Mad'!A15 -> Lab | C17: 0.00
A18: 14 | B18: ='Cash Book Mad'!A16 -> Game related | C18: 0.00
A19: 15 | B19: ='Cash Book Mad'!A17 -> Liberary | C19: 0.00
A20: 16 | B20: ='Cash Book Mad'!A18 -> Electricty/Water Bill | C20: 0.00
A21: 17 | B21: ='Cash Book Mad'!A19 -> FVC | C21: 500.00 | E21: 500.00 | G21: 0.00 | I21: 500.00
A22: 18 | B22: ='Cash Book Mad'!A20 -> Other1 | C22: 3526.00 | E22: 3526.00 | G22: 0.00 | I22: 3526.00 | L22: क्या करू ????????
A23: 19 | B23: ='Cash Book Mad'!A21 -> Other2 | C23: 0.00
A24: 20 | B24: ='Cash Book Mad'!A22 -> Other3 | C24: 0.00
A25: 21 | B25: ='Cash Book Mad'!A23 -> Other4 | C25: 0.00
A26: 22 | B26: ='Cash Book Mad'!A24 -> Other5 | C26: 0.00
A27: 23 | B27: ='Cash Book Mad'!A25 -> Other6 | C27: 0.00
A28: 24 | B28: ='Cash Book Mad'!A26 -> Other7 | C28: 0.00
A29: 25 | B29: ='Cash Book Mad'!A27 -> Other8 | C29: 0.00
A30: 26 | B30: ='Cash Book Mad'!A28 -> Other9 | C30: 0.00
A31: 27 | B31: ='Cash Book Mad'!A29 -> Other10 | C31: 0.00
A32: Toatl | C32: =SUM(C5:C31) -> 152482.54 | D32: 550.00 | E32: 202982.54 | F32: 550.00 | G32: 5500.00 | H32: 0.00 | I32: 197482.54 | J32: 550.00
A33: Grand Total | C33: =C32+D32 -> 153032.54 | E33: =E32+F32 -> 203532.54 | G33: =G32+H32 -> 5500.00 | I33: =I32+J32 -> 198032.54

Sheet Datebysmry
A1: ='Cash Book Mad'!A1 -> Government Senior Secondary School, Rooppura | K1: जिस दिनाक एवं जिस मद की समरी देखनी हो वो दिनाक लिखे एवं मद ड्राप डाउन लिस्ट में से चयन करे |
A3: Date by Summary
A5: Date | B5: 2020-07-01 | E5: मद | F5: Vikas Kosh
D7: S.No. | E7: Credit | F7: Debit
D8: 1 | E8: =SUMIFS('Entry Cr&Dr'!$D$5:$D$25,'Entry Cr&Dr'!$B$5:$B$25,Datebysmry!$F$5,'Entry Cr&Dr'!$A$5:$A$25,Datebysmry!$B$5) -> 0.00 | F8: =SUMIFS('Entry Cr&Dr'!$J$5:$J$25,'Entry Cr&Dr'!$H$5:$H$25,Datebysmry!$F$5,'Entry Cr&Dr'!$G$5:$G$25,Datebysmry!$B$5) -> 0.00

Sheet Entry Cr&Dr
A1: ='Cash Book Mad'!A1 -> Government Senior Secondary School, Rooppura | L1: Receipt वाले कोलम में जो राशि जिस मद में आई है वो मद सेलेक्ट करके विवरण लिखे तथा राशि का इन्द्राज करे | Payment वाले कोलम में जो राशि आपने खर्च की उसका मद सेलेक्ट करके विवरण लिखे तथा राशि का इन्द्राज करे |
A3: Receipt | G3: Payment
A4: दिनाक | B4: मद (जिसमे राशि आई है) | C4: राशि प्राप्त होने का अन्य विवरण | D4: राशि (जो आई है) | E4: राशि जमा होने का तरीका | G4: दिनाक | H4: मद (जिसमे से राशि खर्च हुई है) | I4: किसको दिया गया | J4: राशि (जो दी गई) | K4: राशि देने का तरीका
A5: 2020-07-01 | B5: CSG | C5: lelk }kjk tek | D5: 50000.00 | E5: Online | G5: 2020-07-01 | H5: CSG | I5: dEI;wVj dk;Z ds fy, pSd ua- 452515 }kjk Hkwxrku | J5: 2500.00 | K5: By Cheque
A6: 2020-07-02 | B6: CSG | C6: lelk }kjk tek | D6: 500.00 | E6: Cash | G6: 2020-07-03 | H6: CSG | I6: बिजली बिल के जमा | J6: 3000.00 | K6: By Cheque
L7: Receipt प्रिंट एंड चेक करने के लिए यहाँ Click करे | | P7: Payment प्रिंट एंड चेक करने के लिए यहाँ Click करे |
N10: क्या करू ????????

Sheet Receipt
A1: Receipt
A2: दिनाक | B2: मद जिसमे राशि प्राप्त हुई | C2: किससे प्राप्त हुआ | D2: CSG | E2: Vikas Kosh | F2: FVC | G2: Internet | H2: Gas Subcidy, MDM, Cook-Cum Helper | I2: Scholarship | J2: Scout Guide | K2: Cycle and Transport Voucher | L2: Science | M2: SMC Training | N2: Other1 | O2: Bank Interest | P2: योग | Q2: Cash | R2: बैंक
A3: ='Opening Balance'!I2 -> 2020-07-01 | B3: Opening Balance | D3: =VLOOKUP(D2,opening_bal,2,0) -> 0.00 | E3: 10226.40 | F3: 500.00 | G3: 3252.00 | H3: 60663.42 | I3: 3600.00 | J3: 7150.00 | K3: 20740.00 | L3: 10000.00 | M3: 0.00 | N3: 3526.00 | O3: 32824.72 | P3: =SUM(,D3:O3) -> 152482.54 | Q3: ='Opening Balance'!D5 -> 550.00 | R3: =P3-Q3 -> 151932.54 | T3: इस शीट में केवल cash वाले कोलम में एंट्री करे जो राशि कैश में आई है उसका इन्द्राज cash वाले कोलम में करे |बाकी अन्य किसी भी कोलम में एंट्री करने की आवश्यकता नही है |आसमानी कलर वाले कोलम में मद समान होने चाहिए |
A4: ='Entry Cr&Dr'!A5 -> 2020-07-01 | B4: ='Entry Cr&Dr'!B5 -> CSG | C4: ='Entry Cr&Dr'!C5 -> lelk }kjk tek | D4: =IF(D2=$B$4,'Entry Cr&Dr'!$D$5,"") -> 50000.00 | E4: =IF(E2=$B$4,'Entry Cr&Dr'!$D$5,"") ->  | F4: =IF(F2=$B$4,'Entry Cr&Dr'!$D$5,"") ->  | G4: =IF(G2=$B$4,'Entry Cr&Dr'!$D$5,"") ->  | H4: =IF(H2=$B$4,'Entry Cr&Dr'!$D$5,"") ->  | I4: =IF(I2=$B$4,'Entry Cr&Dr'!$D$5,"") ->  | J4: =IF(J2=$B$4,'Entry Cr&Dr'!$D$5,"") ->  | K4: =IF(K2=$B$4,'Entry Cr&Dr'!$D$5,"") ->  | L4: =IF(L2=$B$4,'Entry Cr&Dr'!$D$5,"") ->  | M4: =IF(M2=$B$4,'Entry Cr&Dr'!$D$5,"") ->  | N4: =IF(N2=$B$4,'Entry Cr&Dr'!$D$5,"") ->  | O4: =IF(O2=$B$4,'Entry Cr&Dr'!$D$5,"") ->  | P4: =SUM(,D4:O4) -> 50000.00 | R4: =P4-Q4 -> 50000.00
A5: ='Entry Cr&Dr'!A6 -> 2020-07-02 | B5: ='Entry Cr&Dr'!B6 -> CSG | C5: ='Entry Cr&Dr'!C6 -> lelk }kjk tek | D5: =IF(D2=$B$5,'Entry Cr&Dr'!$D$6,"") -> 500.00 | E5: =IF(E2=$B$5,'Entry Cr&Dr'!$D$6,"") ->  | F5: =IF(F2=$B$5,'Entry Cr&Dr'!$D$6,"") ->  | G5: =IF(G2=$B$5,'Entry Cr&Dr'!$D$6,"") ->  | H5: =IF(H2=$B$5,'Entry Cr&Dr'!$D$6,"") ->  | I5: =IF(I2=$B$5,'Entry Cr&Dr'!$D$6,"") ->  | J5: =IF(J2=$B$5,'Entry Cr&Dr'!$D$6,"") ->  | K5: =IF(K2=$B$5,'Entry Cr&Dr'!$D$6,"") ->  | L5: =IF(L2=$B$5,'Entry Cr&Dr'!$D$6,"") ->  | M5: =IF(M2=$B$5,'Entry Cr&Dr'!$D$6,"") ->  | N5: =IF(N2=$B$5,'Entry Cr&Dr'!$D$6,"") ->  | O5: =IF(O2=$B$5,'Entry Cr&Dr'!$D$6,"") ->  | P5: 500.00 | R5: 500.00
A6: ='Entry Cr&Dr'!A7 -> 00:00:00 | B6: ='Entry Cr&Dr'!B7 -> 0 | C6: ='Entry Cr&Dr'!C7 -> 0 | D6: =IF(D2=$B$6,'Entry Cr&Dr'!$D$7,"") ->  | E6: =IF(E2=$B$6,'Entry Cr&Dr'!$D$7,"") ->  | F6: =IF(F2=$B$6,'Entry Cr&Dr'!$D$7,"") ->  | G6: =IF(G2=$B$6,'Entry Cr&Dr'!$D$7,"") ->  | H6: =IF(H2=$B$6,'Entry Cr&Dr'!$D$7,"") ->  | I6: =IF(I2=$B$6,'Entry Cr&Dr'!$D$7,"") ->  | J6: =IF(J2=$B$6,'Entry Cr&Dr'!$D$7,"") ->  | K6: =IF(K2=$B$6,'Entry Cr&Dr'!$D$7,"") ->  | L6: =IF(L2=$B$6,'Entry Cr&Dr'!$D$7,"") ->  | M6: =IF(M2=$B$6,'Entry Cr&Dr'!$D$7,"") ->  | N6: =IF(N2=$B$6,'Entry Cr&Dr'!$D$7,"") ->  | O6: =IF(O2=$B$6,'Entry Cr&Dr'!$D$7,"") ->  | P6: 0.00 | R6: 0.00
A7: ='Entry Cr&Dr'!A8 -> 00:00:00 | B7: ='Entry Cr&Dr'!B8 -> 0 | C7: ='Entry Cr&Dr'!C8 -> 0 | D7: =IF(D2=$B$7,'Entry Cr&Dr'!$D$8,"") ->  | E7: =IF(E2=$B$7,'Entry Cr&Dr'!$D$8,"") ->  | F7: =IF(F2=$B$7,'Entry Cr&Dr'!$D$8,"") ->  | G7: =IF(G2=$B$7,'Entry Cr&Dr'!$D$8,"") ->  | H7: =IF(H2=$B$7,'Entry Cr&Dr'!$D$8,"") ->  | I7: =IF(I2=$B$7,'Entry Cr&Dr'!$D$8,"") ->  | J7: =IF(J2=$B$7,'Entry Cr&Dr'!$D$8,"") ->  | K7: =IF(K2=$B$7,'Entry Cr&Dr'!$D$8,"") ->  | L7: =IF(L2=$B$7,'Entry Cr&Dr'!$D$8,"") ->  | M7: =IF(M2=$B$7,'Entry Cr&Dr'!$D$8,"") ->  | N7: =IF(N2=$B$7,'Entry Cr&Dr'!$D$8,"") ->  | O7: =IF(O2=$B$7,'Entry Cr&Dr'!$D$8,"") ->  | P7: 0.00 | R7: 0.00
A8: ='Entry Cr&Dr'!A9 -> 00:00:00 | B8: ='Entry Cr&Dr'!B9 -> 0 | C8: ='Entry Cr&Dr'!C9 -> 0 | D8: =IF(D2=$B$8,'Entry Cr&Dr'!$D$9,"") ->  | E8: =IF(E2=$B$8,'Entry Cr&Dr'!$D$9,"") ->  | F8: =IF(F2=$B$8,'Entry Cr&Dr'!$D$9,"") ->  | G8: =IF(G2=$B$8,'Entry Cr&Dr'!$D$9,"") ->  | H8: =IF(H2=$B$8,'Entry Cr&Dr'!$D$9,"") ->  | I8: =IF(I2=$B$8,'Entry Cr&Dr'!$D$9,"") ->  | J8: =IF(J2=$B$8,'Entry Cr&Dr'!$D$9,"") ->  | K8: =IF(K2=$B$8,'Entry Cr&Dr'!$D$9,"") ->  | L8: =IF(L2=$B$8,'Entry Cr&Dr'!$D$9,"") ->  | M8: =IF(M2=$B$8,'Entry Cr&Dr'!$D$9,"") ->  | N8: =IF(N2=$B$8,'Entry Cr&Dr'!$D$9,"") ->  | O8: =IF(O2=$B$8,'Entry Cr&Dr'!$D$9,"") ->  | P8: 0.00 | R8: 0.00 | T8: Click Here to check ENTRY
A9: ='Entry Cr&Dr'!A10 -> 00:00:00 | B9: ='Entry Cr&Dr'!B10 -> 0 | C9: ='Entry Cr&Dr'!C10 -> 0 | D9: =IF(D2=$B$9,'Entry Cr&Dr'!$D$10,"") ->  | E9: =IF(E2=$B$9,'Entry Cr&Dr'!$D$10,"") ->  | F9: =IF(F2=$B$9,'Entry Cr&Dr'!$D$10,"") ->  | G9: =IF(G2=$B$9,'Entry Cr&Dr'!$D$10,"") ->  | H9: =IF(H2=$B$9,'Entry Cr&Dr'!$D$10,"") ->  | I9: =IF(I2=$B$9,'Entry Cr&Dr'!$D$10,"") ->  | J9: =IF(J2=$B$9,'Entry Cr&Dr'!$D$10,"") ->  | K9: =IF(K2=$B$9,'Entry Cr&Dr'!$D$10,"") ->  | L9: =IF(L2=$B$9,'Entry Cr&Dr'!$D$10,"") ->  | M9: =IF(M2=$B$9,'Entry Cr&Dr'!$D$10,"") ->  | N9: =IF(N2=$B$9,'Entry Cr&Dr'!$D$10,"") ->  | O9: =IF(O2=$B$9,'Entry Cr&Dr'!$D$10,"") ->  | P9: 0.00 | R9: 0.00
A10: ='Entry Cr&Dr'!A11 -> 00:00:00 | B10: ='Entry Cr&Dr'!B11 -> 0 | C10: ='Entry Cr&Dr'!C11 -> 0 | D10: =IF(D2=$B$10,'Entry Cr&Dr'!$D$11,"") ->  | E10: =IF(E2=$B$10,'Entry Cr&Dr'!$D$11,"") ->  | F10: =IF(F2=$B$10,'Entry Cr&Dr'!$D$11,"") ->  | G10: =IF(G2=$B$10,'Entry Cr&Dr'!$D$11,"") ->  | H10: =IF(H2=$B$10,'Entry Cr&Dr'!$D$11,"") ->  | I10: =IF(I2=$B$10,'Entry Cr&Dr'!$D$11,"") ->  | J10: =IF(J2=$B$10,'Entry Cr&Dr'!$D$11,"") ->  | K10: =IF(K2=$B$10,'Entry Cr&Dr'!$D$11,"") ->  | L10: =IF(L2=$B$10,'Entry Cr&Dr'!$D$11,"") ->  | M10: =IF(M2=$B$10,'Entry Cr&Dr'!$D$11,"") ->  | N10: =IF(N2=$B$10,'Entry Cr&Dr'!$D$11,"") ->  | O10: =IF(O2=$B$10,'Entry Cr&Dr'!$D$11,"") ->  | P10: 0.00 | R10: 0.00
A11: ='Entry Cr&Dr'!A12 -> 00:00:00 | B11: ='Entry Cr&Dr'!B12 -> 0 | C11: ='Entry Cr&Dr'!C12 -> 0 | D11: =IF(D2=$B$11,'Entry Cr&Dr'!$D$12,"") ->  | E11: =IF(E2=$B$11,'Entry Cr&Dr'!$D$12,"") ->  | F11: =IF(F2=$B$11,'Entry Cr&Dr'!$D$12,"") ->  | G11: =IF(G2=$B$11,'Entry Cr&Dr'!$D$12,"") ->  | H11: =IF(H2=$B$11,'Entry Cr&Dr'!$D$12,"") ->  | I11: =IF(I2=$B$11,'Entry Cr&Dr'!$D$12,"") ->  | J11: =IF(J2=$B$11,'Entry Cr&Dr'!$D$12,"") ->  | K11: =IF(K2=$B$11,'Entry Cr&Dr'!$D$12,"") ->  | L11: =IF(L2=$B$11,'Entry Cr&Dr'!$D$12,"") ->  | M11: =IF(M2=$B$11,'Entry Cr&Dr'!$D$12,"") ->  | N11: =IF(N2=$B$11,'Entry Cr&Dr'!$D$12,"") ->  | O11: =IF(O2=$B$11,'Entry Cr&Dr'!$D$12,"") ->  | P11: 0.00 | R11: 0.00
A12: ='Entry Cr&Dr'!A13 -> 00:00:00 | B12: ='Entry Cr&Dr'!B13 -> 0 | C12: ='Entry Cr&Dr'!C13 -> 0 | D12: =IF(D2=$B$12,'Entry Cr&Dr'!$D$13,"") ->  | E12: =IF(E2=$B$12,'Entry Cr&Dr'!$D$13,"") ->  | F12: =IF(F2=$B$12,'Entry Cr&Dr'!$D$13,"") ->  | G12: =IF(G2=$B$12,'Entry Cr&Dr'!$D$13,"") ->  | H12: =IF(H2=$B$12,'Entry Cr&Dr'!$D$13,"") ->  | I12: =IF(I2=$B$12,'Entry Cr&Dr'!$D$13,"") ->  | J12: =IF(J2=$B$12,'Entry Cr&Dr'!$D$13,"") ->  | K12: =IF(K2=$B$12,'Entry Cr&Dr'!$D$13,"") ->  | L12: =IF(L2=$B$12,'Entry Cr&Dr'!$D$13,"") ->  | M12: =IF(M2=$B$12,'Entry Cr&Dr'!$D$13,"") ->  | N12: =IF(N2=$B$12,'Entry Cr&Dr'!$D$13,"") ->  | O12: =IF(O2=$B$12,'Entry Cr&Dr'!$D$13,"") ->  | P12: 0.00 | R12: 0.00
A13: ='Entry Cr&Dr'!A14 -> 00:00:00 | B13: ='Entry Cr&Dr'!B14 -> 0 | C13: ='Entry Cr&Dr'!C14 -> 0 | D13: =IF(D2=$B$13,'Entry Cr&Dr'!$D$14,"") ->  | E13: =IF(E2=$B$13,'Entry Cr&Dr'!$D$14,"") ->  | F13: =IF(F2=$B$13,'Entry Cr&Dr'!$D$14,"") ->  | G13: =IF(G2=$B$13,'Entry Cr&Dr'!$D$14,"") ->  | H13: =IF(H2=$B$13,'Entry Cr&Dr'!$D$14,"") ->  | I13: =IF(I2=$B$13,'Entry Cr&Dr'!$D$14,"") ->  | J13: =IF(J2=$B$13,'Entry Cr&Dr'!$D$14,"") ->  | K13: =IF(K2=$B$13,'Entry Cr&Dr'!$D$14,"") ->  | L13: =IF(L2=$B$13,'Entry Cr&Dr'!$D$14,"") ->  | M13: =IF(M2=$B$13,'Entry Cr&Dr'!$D$14,"") ->  | N13: =IF(N2=$B$13,'Entry Cr&Dr'!$D$14,"") ->  | O13: =IF(O2=$B$13,'Entry Cr&Dr'!$D$14,"") ->  | P13: 0.00 | R13: 0.00
A14: ='Entry Cr&Dr'!A15 -> 00:00:00 | B14: ='Entry Cr&Dr'!B15 -> 0 | C14: ='Entry Cr&Dr'!C15 -> 0 | D14: =IF(D2=$B$14,'Entry Cr&Dr'!$D$15,"") ->  | E14: =IF(E2=$B$14,'Entry Cr&Dr'!$D$15,"") ->  | F14: =IF(F2=$B$14,'Entry Cr&Dr'!$D$15,"") ->  | G14: =IF(G2=$B$14,'Entry Cr&Dr'!$D$15,"") ->  | H14: =IF(H2=$B$14,'Entry Cr&Dr'!$D$15,"") ->  | I14: =IF(I2=$B$14,'Entry Cr&Dr'!$D$15,"") ->  | J14: =IF(J2=$B$14,'Entry Cr&Dr'!$D$15,"") ->  | K14: =IF(K2=$B$14,'Entry Cr&Dr'!$D$15,"") ->  | L14: =IF(L2=$B$14,'Entry Cr&Dr'!$D$15,"") ->  | M14: =IF(M2=$B$14,'Entry Cr&Dr'!$D$15,"") ->  | N14: =IF(N2=$B$14,'Entry Cr&Dr'!$D$15,"") ->  | O14: =IF(O2=$B$14,'Entry Cr&Dr'!$D$15,"") ->  | P14: 0.00 | R14: 0.00
A15: ='Entry Cr&Dr'!A16 -> 00:00:00 | B15: ='Entry Cr&Dr'!B16 -> 0 | C15: ='Entry Cr&Dr'!C16 -> 0 | D15: =IF(D2=$B$15,'Entry Cr&Dr'!$D$16,"") ->  | E15: =IF(E2=$B$15,'Entry Cr&Dr'!$D$16,"") ->  | F15: =IF(F2=$B$15,'Entry Cr&Dr'!$D$16,"") ->  | G15: =IF(G2=$B$15,'Entry Cr&Dr'!$D$16,"") ->  | H15: =IF(H2=$B$15,'Entry Cr&Dr'!$D$16,"") ->  | I15: =IF(I2=$B$15,'Entry Cr&Dr'!$D$16,"") ->  | J15: =IF(J2=$B$15,'Entry Cr&Dr'!$D$16,"") ->  | K15: =IF(K2=$B$15,'Entry Cr&Dr'!$D$16,"") ->  | L15: =IF(L2=$B$15,'Entry Cr&Dr'!$D$16,"") ->  | M15: =IF(M2=$B$15,'Entry Cr&Dr'!$D$16,"") ->  | N15: =IF(N2=$B$15,'Entry Cr&Dr'!$D$16,"") ->  | O15: =IF(O2=$B$15,'Entry Cr&Dr'!$D$16,"") ->  | P15: 0.00 | R15: 0.00
A16: ='Entry Cr&Dr'!A17 -> 00:00:00 | B16: ='Entry Cr&Dr'!B17 -> 0 | C16: ='Entry Cr&Dr'!C17 -> 0 | D16: =IF(D2=$B$16,'Entry Cr&Dr'!$D$17,"") ->  | E16: =IF(E2=$B$16,'Entry Cr&Dr'!$D$17,"") ->  | F16: =IF(F2=$B$16,'Entry Cr&Dr'!$D$17,"") ->  | G16: =IF(G2=$B$16,'Entry Cr&Dr'!$D$17,"") ->  | H16: =IF(H2=$B$16,'Entry Cr&Dr'!$D$17,"") ->  | I16: =IF(I2=$B$16,'Entry Cr&Dr'!$D$17,"") ->  | J16: =IF(J2=$B$16,'Entry Cr&Dr'!$D$17,"") ->  | K16: =IF(K2=$B$16,'Entry Cr&Dr'!$D$17,"") ->  | L16: =IF(L2=$B$16,'Entry Cr&Dr'!$D$17,"") ->  | M16: =IF(M2=$B$16,'Entry Cr&Dr'!$D$17,"") ->  | N16: =IF(N2=$B$16,'Entry Cr&Dr'!$D$17,"") ->  | O16: =IF(O2=$B$16,'Entry Cr&Dr'!$D$17,"") ->  | P16: 0.00 | R16: 0.00
A17: ='Entry Cr&Dr'!A18 -> 00:00:00 | B17: ='Entry Cr&Dr'!B18 -> 0 | C17: ='Entry Cr&Dr'!C18 -> 0 | D17: =IF(D2=$B$17,'Entry Cr&Dr'!$D$18,"") ->  | E17: =IF(E2=$B$17,'Entry Cr&Dr'!$D$18,"") ->  | F17: =IF(F2=$B$17,'Entry Cr&Dr'!$D$18,"") ->  | G17: =IF(G2=$B$17,'Entry Cr&Dr'!$D$18,"") ->  | H17: =IF(H2=$B$17,'Entry Cr&Dr'!$D$18,"") ->  | I17: =IF(I2=$B$17,'Entry Cr&Dr'!$D$18,"") ->  | J17: =IF(J2=$B$17,'Entry Cr&Dr'!$D$18,"") ->  | K17: =IF(K2=$B$17,'Entry Cr&Dr'!$D$18,"") ->  | L17: =IF(L2=$B$17,'Entry Cr&Dr'!$D$18,"") ->  | M17: =IF(M2=$B$17,'Entry Cr&Dr'!$D$18,"") ->  | N17: =IF(N2=$B$17,'Entry Cr&Dr'!$D$18,"") ->  | O17: =IF(O2=$B$17,'Entry Cr&Dr'!$D$18,"") ->  | P17: 0.00 | R17: 0.00
A18: ='Entry Cr&Dr'!A19 -> 00:00:00 | B18: ='Entry Cr&Dr'!B19 -> 0 | C18: ='Entry Cr&Dr'!C19 -> 0 | D18: =IF(D2=$B$18,'Entry Cr&Dr'!$D$19,"") ->  | E18: =IF(E2=$B$18,'Entry Cr&Dr'!$D$19,"") ->  | F18: =IF(F2=$B$18,'Entry Cr&Dr'!$D$19,"") ->  | G18: =IF(G2=$B$18,'Entry Cr&Dr'!$D$19,"") ->  | H18: =IF(H2=$B$18,'Entry Cr&Dr'!$D$19,"") ->  | I18: =IF(I2=$B$18,'Entry Cr&Dr'!$D$19,"") ->  | J18: =IF(J2=$B$18,'Entry Cr&Dr'!$D$19,"") ->  | K18: =IF(K2=$B$18,'Entry Cr&Dr'!$D$19,"") ->  | L18: =IF(L2=$B$18,'Entry Cr&Dr'!$D$19,"") ->  | M18: =IF(M2=$B$18,'Entry Cr&Dr'!$D$19,"") ->  | N18: =IF(N2=$B$18,'Entry Cr&Dr'!$D$19,"") ->  | O18: =IF(O2=$B$18,'Entry Cr&Dr'!$D$19,"") ->  | P18: 0.00 | R18: 0.00
A19: ='Entry Cr&Dr'!A20 -> 00:00:00 | B19: ='Entry Cr&Dr'!B20 -> 0 | C19: ='Entry Cr&Dr'!C20 -> 0 | D19: =IF(D2=$B$19,'Entry Cr&Dr'!$D$20,"") ->  | E19: =IF(E2=$B$19,'Entry Cr&Dr'!$D$20,"") ->  | F19: =IF(F2=$B$19,'Entry Cr&Dr'!$D$20,"") ->  | G19: =IF(G2=$B$19,'Entry Cr&Dr'!$D$20,"") ->  | H19: =IF(H2=$B$19,'Entry Cr&Dr'!$D$20,"") ->  | I19: =IF(I2=$B$19,'Entry Cr&Dr'!$D$20,"") ->  | J19: =IF(J2=$B$19,'Entry Cr&Dr'!$D$20,"") ->  | K19: =IF(K2=$B$19,'Entry Cr&Dr'!$D$20,"") ->  | L19: =IF(L2=$B$19,'Entry Cr&Dr'!$D$20,"") ->  | M19: =IF(M2=$B$19,'Entry Cr&Dr'!$D$20,"") ->  | N19: =IF(N2=$B$19,'Entry Cr&Dr'!$D$20,"") ->  | O19: =IF(O2=$B$19,'Entry Cr&Dr'!$D$20,"") ->  | P19: 0.00 | R19: 0.00
A20: ='Entry Cr&Dr'!A21 -> 00:00:00 | B20: ='Entry Cr&Dr'!B21 -> 0 | C20: ='Entry Cr&Dr'!C21 -> 0 | D20: =IF(D2=$B$20,'Entry Cr&Dr'!$D$21,"") ->  | E20: =IF(E2=$B$20,'Entry Cr&Dr'!$D$21,"") ->  | F20: =IF(F2=$B$20,'Entry Cr&Dr'!$D$21,"") ->  | G20: =IF(G2=$B$20,'Entry Cr&Dr'!$D$21,"") ->  | H20: =IF(H2=$B$20,'Entry Cr&Dr'!$D$21,"") ->  | I20: =IF(I2=$B$20,'Entry Cr&Dr'!$D$21,"") ->  | J20: =IF(J2=$B$20,'Entry Cr&Dr'!$D$21,"") ->  | K20: =IF(K2=$B$20,'Entry Cr&Dr'!$D$21,"") ->  | L20: =IF(L2=$B$20,'Entry Cr&Dr'!$D$21,"") ->  | M20: =IF(M2=$B$20,'Entry Cr&Dr'!$D$21,"") ->  | N20: =IF(N2=$B$20,'Entry Cr&Dr'!$D$21,"") ->  | O20: =IF(O2=$B$20,'Entry Cr&Dr'!$D$21,"") ->  | P20: 0.00 | R20: 0.00
A21: ='Entry Cr&Dr'!A22 -> 00:00:00 | B21: ='Entry Cr&Dr'!B22 -> 0 | C21: ='Entry Cr&Dr'!C22 -> 0 | D21: =IF(D2=$B$21,'Entry Cr&Dr'!$D$22,"") ->  | E21: =IF(E2=$B$21,'Entry Cr&Dr'!$D$22,"") ->  | F21: =IF(F2=$B$21,'Entry Cr&Dr'!$D$22,"") ->  | G21: =IF(G2=$B$21,'Entry Cr&Dr'!$D$22,"") ->  | H21: =IF(H2=$B$21,'Entry Cr&Dr'!$D$22,"") ->  | I21: =IF(I2=$B$21,'Entry Cr&Dr'!$D$22,"") ->  | J21: =IF(J2=$B$21,'Entry Cr&Dr'!$D$22,"") ->  | K21: =IF(K2=$B$21,'Entry Cr&Dr'!$D$22,"") ->  | L21: =IF(L2=$B$21,'Entry Cr&Dr'!$D$22,"") ->  | M21: =IF(M2=$B$21,'Entry Cr&Dr'!$D$22,"") ->  | N21: =IF(N2=$B$21,'Entry Cr&Dr'!$D$22,"") ->  | O21: =IF(O2=$B$21,'Entry Cr&Dr'!$D$22,"") ->  | P21: 0.00 | R21: 0.00
A22: ='Entry Cr&Dr'!A23 -> 00:00:00 | B22: ='Entry Cr&Dr'!B23 -> 0 | C22: ='Entry Cr&Dr'!C23 -> 0 | D22: =IF(D2=$B$22,'Entry Cr&Dr'!$D$23,"") ->  | E22: =IF(E2=$B$22,'Entry Cr&Dr'!$D$23,"") ->  | F22: =IF(F2=$B$22,'Entry Cr&Dr'!$D$23,"") ->  | G22: =IF(G2=$B$22,'Entry Cr&Dr'!$D$23,"") ->  | H22: =IF(H2=$B$22,'Entry Cr&Dr'!$D$23,"") ->  | I22: =IF(I2=$B$22,'Entry Cr&Dr'!$D$23,"") ->  | J22: =IF(J2=$B$22,'Entry Cr&Dr'!$D$23,"") ->  | K22: =IF(K2=$B$22,'Entry Cr&Dr'!$D$23,"") ->  | L22: =IF(L2=$B$22,'Entry Cr&Dr'!$D$23,"") ->  | M22: =IF(M2=$B$22,'Entry Cr&Dr'!$D$23,"") ->  | N22: =IF(N2=$B$22,'Entry Cr&Dr'!$D$23,"") ->  | O22: =IF(O2=$B$22,'Entry Cr&Dr'!$D$23,"") ->  | P22: 0.00 | R22: 0.00
A23: ='Entry Cr&Dr'!A24 -> 00:00:00 | B23: ='Entry Cr&Dr'!B24 -> 0 | C23: ='Entry Cr&Dr'!C24 -> 0 | D23: =IF(D2=$B$23,'Entry Cr&Dr'!$D$24,"") ->  | E23: =IF(E2=$B$23,'Entry Cr&Dr'!$D$24,"") ->  | F23: =IF(F2=$B$23,'Entry Cr&Dr'!$D$24,"") ->  | G23: =IF(G2=$B$23,'Entry Cr&Dr'!$D$24,"") ->  | H23: =IF(H2=$B$23,'Entry Cr&Dr'!$D$24,"") ->  | I23: =IF(I2=$B$23,'Entry Cr&Dr'!$D$24,"") ->  | J23: =IF(J2=$B$23,'Entry Cr&Dr'!$D$24,"") ->  | K23: =IF(K2=$B$23,'Entry Cr&Dr'!$D$24,"") ->  | L23: =IF(L2=$B$23,'Entry Cr&Dr'!$D$24,"") ->  | M23: =IF(M2=$B$23,'Entry Cr&Dr'!$D$24,"") ->  | N23: =IF(N2=$B$23,'Entry Cr&Dr'!$D$24,"") ->  | O23: =IF(O2=$B$23,'Entry Cr&Dr'!$D$24,"") ->  | P23: 0.00 | R23: 0.00
A24: ='Entry Cr&Dr'!A25 -> 00:00:00 | B24: ='Entry Cr&Dr'!B25 -> 0 | C24: ='Entry Cr&Dr'!C25 -> 0 | D24: =IF(D2=$B$24,'Entry Cr&Dr'!$D$25,"") ->  | E24: =IF(E2=$B$24,'Entry Cr&Dr'!$D$25,"") ->  | F24: =IF(F2=$B$24,'Entry Cr&Dr'!$D$25,"") ->  | G24: =IF(G2=$B$24,'Entry Cr&Dr'!$D$25,"") ->  | H24: =IF(H2=$B$24,'Entry Cr&Dr'!$D$25,"") ->  | I24: =IF(I2=$B$24,'Entry Cr&Dr'!$D$25,"") ->  | J24: =IF(J2=$B$24,'Entry Cr&Dr'!$D$25,"") ->  | K24: =IF(K2=$B$24,'Entry Cr&Dr'!$D$25,"") ->  | L24: =IF(L2=$B$24,'Entry Cr&Dr'!$D$25,"") ->  | M24: =IF(M2=$B$24,'Entry Cr&Dr'!$D$25,"") ->  | N24: =IF(N2=$B$24,'Entry Cr&Dr'!$D$25,"") ->  | O24: =IF(O2=$B$24,'Entry Cr&Dr'!$D$25,"") ->  | P24: 0.00 | R24: 0.00
A28: योग | D28: =SUM(D3:D24) -> 50500.00 | E28: =SUM(E3:E24) -> 10226.40 | F28: 500.00 | G28: 3252.00 | H28: 60663.42 | I28: 3600.00 | J28: 7150.00 | K28: 20740.00 | L28: 10000.00 | M28: 0.00 | N28: 3526.00 | O28: 32824.72 | P28: 202982.54 | Q28: 550.00 | R28: 202432.54

Sheet Payment
A1: Payment
A2: दिनाक | B2: मद जिससे राशि गई | C2: किसको दिया का विवरण | D2: CSG | E2: Vikas Kosh | F2: FVC | G2: Internet | H2: Gas Subcidy, MDM, Cook-Cum Helper | I2: Scholarship | J2: Scout Guide | K2: Cycle and Transport Voucher | L2: Science | M2: SMC Training | N2: Other1 | O2: Bank Interest | P2: योग | Q2: Cash | R2: बैंक
A3: ='Entry Cr&Dr'!G5 -> 2020-07-01 | B3: ='Entry Cr&Dr'!H5 -> CSG | C3: ='Entry Cr&Dr'!I5 -> dEI;wVj dk;Z ds fy, pSd ua- 452515 }kjk Hkwxrku | D3: =IF(D2=$B$3,'Entry Cr&Dr'!$J$5,"") -> 2500.00 | E3: =IF(E2=$B$3,'Entry Cr&Dr'!$J$5,"") ->  | F3: =IF(F2=$B$3,'Entry Cr&Dr'!$J$5,"") ->  | G3: =IF(G2=$B$3,'Entry Cr&Dr'!$J$5,"") ->  | H3: =IF(H2=$B$3,'Entry Cr&Dr'!$J$5,"") ->  | I3: =IF(I2=$B$3,'Entry Cr&Dr'!$J$5,"") ->  | J3: =IF(J2=$B$3,'Entry Cr&Dr'!$J$5,"") ->  | K3: =IF(K2=$B$3,'Entry Cr&Dr'!$J$5,"") ->  | L3: =IF(L2=$B$3,'Entry Cr&Dr'!$J$5,"") ->  | M3: =IF(M2=$B$3,'Entry Cr&Dr'!$J$5,"") ->  | N3: =IF(N2=$B$3,'Entry Cr&Dr'!$J$5,"") ->  | O3: =IF(O2=$B$3,'Entry Cr&Dr'!$J$5,"") ->  | P3: =SUM(D3:O3) -> 2500.00 | R3: =P3-Q3 -> 2500.00 | T3: इस शीट में केवल cash वाले कोलम में एंट्री करे जिस राशि का पेमेंट आपने कैश में दिया है उसका इन्द्राज cash वाले कोलम में करे |बाकी अन्य किसी भी कोलम में एंट्री करने की आवश्यकता नही है | आसमानी कलर वाले कोलम में मद समान होने चाहिए |
A4: ='Entry Cr&Dr'!G6 -> 2020-07-03 | B4: ='Entry Cr&Dr'!H6 -> CSG | C4: ='Entry Cr&Dr'!I6 -> बिजली बिल के जमा | D4: =IF(D2=$B$4,'Entry Cr&Dr'!$J$6,"") -> 3000.00 | E4: =IF(E2=$B$4,'Entry Cr&Dr'!$J$6,"") ->  | F4: =IF(F2=$B$4,'Entry Cr&Dr'!$J$6,"") ->  | G4: =IF(G2=$B$4,'Entry Cr&Dr'!$J$6,"") ->  | H4: =IF(H2=$B$4,'Entry Cr&Dr'!$J$6,"") ->  | I4: =IF(I2=$B$4,'Entry Cr&Dr'!$J$6,"") ->  | J4: =IF(J2=$B$4,'Entry Cr&Dr'!$J$6,"") ->  | K4: =IF(K2=$B$4,'Entry Cr&Dr'!$J$6,"") ->  | L4: =IF(L2=$B$4,'Entry Cr&Dr'!$J$6,"") ->  | M4: =IF(M2=$B$4,'Entry Cr&Dr'!$J$6,"") ->  | N4: =IF(N2=$B$4,'Entry Cr&Dr'!$J$6,"") ->  | O4: =IF(O2=$B$4,'Entry Cr&Dr'!$J$6,"") ->  | P4: =SUM(D4:O4) -> 3000.00 | R4: =P4-Q4 -> 3000.00
A5: ='Entry Cr&Dr'!G7 -> 00:00:00 | B5: ='Entry Cr&Dr'!H7 -> 0 | C5: ='Entry Cr&Dr'!I7 -> 0 | D5: =IF(D2=$B$5,'Entry Cr&Dr'!$J$7,"") ->  | E5: =IF(E2=$B$5,'Entry Cr&Dr'!$J$7,"") ->  | F5: =IF(F2=$B$5,'Entry Cr&Dr'!$J$7,"") ->  | G5: =IF(G2=$B$5,'Entry Cr&Dr'!$J$7,"") ->  | H5: =IF(H2=$B$5,'Entry Cr&Dr'!$J$7,"") ->  | I5: =IF(I2=$B$5,'Entry Cr&Dr'!$J$7,"") ->  | J5: =IF(J2=$B$5,'Entry Cr&Dr'!$J$7,"") ->  | K5: =IF(K2=$B$5,'Entry Cr&Dr'!$J$7,"") ->  | L5: =IF(L2=$B$5,'Entry Cr&Dr'!$J$7,"") ->  | M5: =IF(M2=$B$5,'Entry Cr&Dr'!$J$7,"") ->  | N5: =IF(N2=$B$5,'Entry Cr&Dr'!$J$7,"") ->  | O5: =IF(O2=$B$5,'Entry Cr&Dr'!$J$7,"") ->  | P5: 0.00 | R5: 0.00
A6: ='Entry Cr&Dr'!G8 -> 00:00:00 | B6: ='Entry Cr&Dr'!H8 -> 0 | C6: ='Entry Cr&Dr'!I8 -> 0 | D6: =IF(D2=$B$6,'Entry Cr&Dr'!$J$8,"") ->  | E6: =IF(E2=$B$6,'Entry Cr&Dr'!$J$8,"") ->  | F6: =IF(F2=$B$6,'Entry Cr&Dr'!$J$8,"") ->  | G6: =IF(G2=$B$6,'Entry Cr&Dr'!$J$8,"") ->  | H6: =IF(H2=$B$6,'Entry Cr&Dr'!$J$8,"") ->  | I6: =IF(I2=$B$6,'Entry Cr&Dr'!$J$8,"") ->  | J6: =IF(J2=$B$6,'Entry Cr&Dr'!$J$8,"") ->  | K6: =IF(K2=$B$6,'Entry Cr&Dr'!$J$8,"") ->  | L6: =IF(L2=$B$6,'Entry Cr&Dr'!$J$8,"") ->  | M6: =IF(M2=$B$6,'Entry Cr&Dr'!$J$8,"") ->  | N6: =IF(N2=$B$6,'Entry Cr&Dr'!$J$8,"") ->  | O6: =IF(O2=$B$6,'Entry Cr&Dr'!$J$8,"") ->  | P6: 0.00 | R6: 0.00
A7: ='Entry Cr&Dr'!G9 -> 00:00:00 | B7: ='Entry Cr&Dr'!H9 -> 0 | C7: ='Entry Cr&Dr'!I9 -> 0 | D7: =IF(D2=$B$7,'Entry Cr&Dr'!$J$9,"") ->  | E7: =IF(E2=$B$7,'Entry Cr&Dr'!$J$9,"") ->  | F7: =IF(F2=$B$7,'Entry Cr&Dr'!$J$9,"") ->  | G7: =IF(G2=$B$7,'Entry Cr&Dr'!$J$9,"") ->  | H7: =IF(H2=$B$7,'Entry Cr&Dr'!$J$9,"") ->  | I7: =IF(I2=$B$7,'Entry Cr&Dr'!$J$9,"") ->  | J7: =IF(J2=$B$7,'Entry Cr&Dr'!$J$9,"") ->  | K7: =IF(K2=$B$7,'Entry Cr&Dr'!$J$9,"") ->  | L7: =IF(L2=$B$7,'Entry Cr&Dr'!$J$9,"") ->  | M7: =IF(M2=$B$7,'Entry Cr&Dr'!$J$9,"") ->  | N7: =IF(N2=$B$7,'Entry Cr&Dr'!$J$9,"") ->  | O7: =IF(O2=$B$7,'Entry Cr&Dr'!$J$9,"") ->  | P7: 0.00 | R7: 0.00
A8: ='Entry Cr&Dr'!G10 -> 00:00:00 | B8: ='Entry Cr&Dr'!H10 -> 0 | C8: ='Entry Cr&Dr'!I10 -> 0 | D8: =IF(D2=$B$8,'Entry Cr&Dr'!$J$10,"") ->  | E8: =IF(E2=$B$8,'Entry Cr&Dr'!$J$10,"") ->  | F8: =IF(F2=$B$8,'Entry Cr&Dr'!$J$10,"") ->  | G8: =IF(G2=$B$8,'Entry Cr&Dr'!$J$10,"") ->  | H8: =IF(H2=$B$8,'Entry Cr&Dr'!$J$10,"") ->  | I8: =IF(I2=$B$8,'Entry Cr&Dr'!$J$10,"") ->  | J8: =IF(J2=$B$8,'Entry Cr&Dr'!$J$10,"") ->  | K8: =IF(K2=$B$8,'Entry Cr&Dr'!$J$10,"") ->  | L8: =IF(L2=$B$8,'Entry Cr&Dr'!$J$10,"") ->  | M8: =IF(M2=$B$8,'Entry Cr&Dr'!$J$10,"") ->  | N8: =IF(N2=$B$8,'Entry Cr&Dr'!$J$10,"") ->  | O8: =IF(O2=$B$8,'Entry Cr&Dr'!$J$10,"") ->  | P8: 0.00 | R8: 0.00
A9: ='Entry Cr&Dr'!G11 -> 00:00:00 | B9: ='Entry Cr&Dr'!H11 -> 0 | C9: ='Entry Cr&Dr'!I11 -> 0 | D9: =IF(D2=$B$9,'Entry Cr&Dr'!$J$11,"") ->  | E9: =IF(E2=$B$9,'Entry Cr&Dr'!$J$11,"") ->  | F9: =IF(F2=$B$9,'Entry Cr&Dr'!$J$11,"") ->  | G9: =IF(G2=$B$9,'Entry Cr&Dr'!$J$11,"") ->  | H9: =IF(H2=$B$9,'Entry Cr&Dr'!$J$11,"") ->  | I9: =IF(I2=$B$9,'Entry Cr&Dr'!$J$11,"") ->  | J9: =IF(J2=$B$9,'Entry Cr&Dr'!$J$11,"") ->  | K9: =IF(K2=$B$9,'Entry Cr&Dr'!$J$11,"") ->  | L9: =IF(L2=$B$9,'Entry Cr&Dr'!$J$11,"") ->  | M9: =IF(M2=$B$9,'Entry Cr&Dr'!$J$11,"") ->  | N9: =IF(N2=$B$9,'Entry Cr&Dr'!$J$11,"") ->  | O9: =IF(O2=$B$9,'Entry Cr&Dr'!$J$11,"") ->  | P9: 0.00 | R9: 0.00 | T9: Click Here to check ENTRY
A10: ='Entry Cr&Dr'!G12 -> 00:00:00 | B10: ='Entry Cr&Dr'!H12 -> 0 | C10: ='Entry Cr&Dr'!I12 -> 0 | D10: =IF(D2=$B$10,'Entry Cr&Dr'!$J$12,"") ->  | E10: =IF(E2=$B$10,'Entry Cr&Dr'!$J$12,"") ->  | F10: =IF(F2=$B$10,'Entry Cr&Dr'!$J$12,"") ->  | G10: =IF(G2=$B$10,'Entry Cr&Dr'!$J$12,"") ->  | H10: =IF(H2=$B$10,'Entry Cr&Dr'!$J$12,"") ->  | I10: =IF(I2=$B$10,'Entry Cr&Dr'!$J$12,"") ->  | J10: =IF(J2=$B$10,'Entry Cr&Dr'!$J$12,"") ->  | K10: =IF(K2=$B$10,'Entry Cr&Dr'!$J$12,"") ->  | L10: =IF(L2=$B$10,'Entry Cr&Dr'!$J$12,"") ->  | M10: =IF(M2=$B$10,'Entry Cr&Dr'!$J$12,"") ->  | N10: =IF(N2=$B$10,'Entry Cr&Dr'!$J$12,"") ->  | O10: =IF(O2=$B$10,'Entry Cr&Dr'!$J$12,"") ->  | P10: 0.00 | R10: 0.00
A11: ='Entry Cr&Dr'!G13 -> 00:00:00 | B11: ='Entry Cr&Dr'!H13 -> 0 | C11: ='Entry Cr&Dr'!I13 -> 0 | D11: =IF(D2=$B$11,'Entry Cr&Dr'!$J$13,"") ->  | E11: =IF(E2=$B$11,'Entry Cr&Dr'!$J$13,"") ->  | F11: =IF(F2=$B$11,'Entry Cr&Dr'!$J$13,"") ->  | G11: =IF(G2=$B$11,'Entry Cr&Dr'!$J$13,"") ->  | H11: =IF(H2=$B$11,'Entry Cr&Dr'!$J$13,"") ->  | I11: =IF(I2=$B$11,'Entry Cr&Dr'!$J$13,"") ->  | J11: =IF(J2=$B$11,'Entry Cr&Dr'!$J$13,"") ->  | K11: =IF(K2=$B$11,'Entry Cr&Dr'!$J$13,"") ->  | L11: =IF(L2=$B$11,'Entry Cr&Dr'!$J$13,"") ->  | M11: =IF(M2=$B$11,'Entry Cr&Dr'!$J$13,"") ->  | N11: =IF(N2=$B$11,'Entry Cr&Dr'!$J$13,"") ->  | O11: =IF(O2=$B$11,'Entry Cr&Dr'!$J$13,"") ->  | P11: 0.00 | R11: 0.00
A12: ='Entry Cr&Dr'!G14 -> 00:00:00 | B12: ='Entry Cr&Dr'!H14 -> 0 | C12: ='Entry Cr&Dr'!I14 -> 0 | D12: =IF(D2=$B$12,'Entry Cr&Dr'!$J$14,"") ->  | E12: =IF(E2=$B$12,'Entry Cr&Dr'!$J$14,"") ->  | F12: =IF(F2=$B$12,'Entry Cr&Dr'!$J$14,"") ->  | G12: =IF(G2=$B$12,'Entry Cr&Dr'!$J$14,"") ->  | H12: =IF(H2=$B$12,'Entry Cr&Dr'!$J$14,"") ->  | I12: =IF(I2=$B$12,'Entry Cr&Dr'!$J$14,"") ->  | J12: =IF(J2=$B$12,'Entry Cr&Dr'!$J$14,"") ->  | K12: =IF(K2=$B$12,'Entry Cr&Dr'!$J$14,"") ->  | L12: =IF(L2=$B$12,'Entry Cr&Dr'!$J$14,"") ->  | M12: =IF(M2=$B$12,'Entry Cr&Dr'!$J$14,"") ->  | N12: =IF(N2=$B$12,'Entry Cr&Dr'!$J$14,"") ->  | O12: =IF(O2=$B$12,'Entry Cr&Dr'!$J$14,"") ->  | P12: 0.00 | R12: 0.00
A13: ='Entry Cr&Dr'!G15 -> 00:00:00 | B13: ='Entry Cr&Dr'!H15 -> 0 | C13: ='Entry Cr&Dr'!I15 -> 0 | D13: =IF(D2=$B$13,'Entry Cr&Dr'!$J$15,"") ->  | E13: =IF(E2=$B$13,'Entry Cr&Dr'!$J$15,"") ->  | F13: =IF(F2=$B$13,'Entry Cr&Dr'!$J$15,"") ->  | G13: =IF(G2=$B$13,'Entry Cr&Dr'!$J$15,"") ->  | H13: =IF(H2=$B$13,'Entry Cr&Dr'!$J$15,"") ->  | I13: =IF(I2=$B$13,'Entry Cr&Dr'!$J$15,"") ->  | J13: =IF(J2=$B$13,'Entry Cr&Dr'!$J$15,"") ->  | K13: =IF(K2=$B$13,'Entry Cr&Dr'!$J$15,"") ->  | L13: =IF(L2=$B$13,'Entry Cr&Dr'!$J$15,"") ->  | M13: =IF(M2=$B$13,'Entry Cr&Dr'!$J$15,"") ->  | N13: =IF(N2=$B$13,'Entry Cr&Dr'!$J$15,"") ->  | O13: =IF(O2=$B$13,'Entry Cr&Dr'!$J$15,"") ->  | P13: 0.00 | R13: 0.00
A14: ='Entry Cr&Dr'!G16 -> 00:00:00 | B14: ='Entry Cr&Dr'!H16 -> 0 | C14: ='Entry Cr&Dr'!I16 -> 0 | D14: =IF(D2=$B$14,'Entry Cr&Dr'!$J$16,"") ->  | E14: =IF(E2=$B$14,'Entry Cr&Dr'!$J$16,"") ->  | F14: =IF(F2=$B$14,'Entry Cr&Dr'!$J$16,"") ->  | G14: =IF(G2=$B$14,'Entry Cr&Dr'!$J$16,"") ->  | H14: =IF(H2=$B$14,'Entry Cr&Dr'!$J$16,"") ->  | I14: =IF(I2=$B$14,'Entry Cr&Dr'!$J$16,"") ->  | J14: =IF(J2=$B$14,'Entry Cr&Dr'!$J$16,"") ->  | K14: =IF(K2=$B$14,'Entry Cr&Dr'!$J$16,"") ->  | L14: =IF(L2=$B$14,'Entry Cr&Dr'!$J$16,"") ->  | M14: =IF(M2=$B$14,'Entry Cr&Dr'!$J$16,"") ->  | N14: =IF(N2=$B$14,'Entry Cr&Dr'!$J$16,"") ->  | O14: =IF(O2=$B$14,'Entry Cr&Dr'!$J$16,"") ->  | P14: 0.00 | R14: 0.00
A15: ='Entry Cr&Dr'!G17 -> 00:00:00 | B15: ='Entry Cr&Dr'!H17 -> 0 | C15: ='Entry Cr&Dr'!I17 -> 0 | D15: =IF(D2=$B$15,'Entry Cr&Dr'!$J$17,"") ->  | E15: =IF(E2=$B$15,'Entry Cr&Dr'!$J$17,"") ->  | F15: =IF(F2=$B$15,'Entry Cr&Dr'!$J$17,"") ->  | G15: =IF(G2=$B$15,'Entry Cr&Dr'!$J$17,"") ->  | H15: =IF(H2=$B$15,'Entry Cr&Dr'!$J$17,"") ->  | I15: =IF(I2=$B$15,'Entry Cr&Dr'!$J$17,"") ->  | J15: =IF(J2=$B$15,'Entry Cr&Dr'!$J$17,"") ->  | K15: =IF(K2=$B$15,'Entry Cr&Dr'!$J$17,"") ->  | L15: =IF(L2=$B$15,'Entry Cr&Dr'!$J$17,"") ->  | M15: =IF(M2=$B$15,'Entry Cr&Dr'!$J$17,"") ->  | N15: =IF(N2=$B$15,'Entry Cr&Dr'!$J$17,"") ->  | O15: =IF(O2=$B$15,'Entry Cr&Dr'!$J$17,"") ->  | P15: 0.00 | R15: 0.00
A16: ='Entry Cr&Dr'!G18 -> 00:00:00 | B16: ='Entry Cr&Dr'!H18 -> 0 | C16: ='Entry Cr&Dr'!I18 -> 0 | D16: =IF(D2=$B$16,'Entry Cr&Dr'!$J$18,"") ->  | E16: =IF(E2=$B$16,'Entry Cr&Dr'!$J$18,"") ->  | F16: =IF(F2=$B$16,'Entry Cr&Dr'!$J$18,"") ->  | G16: =IF(G2=$B$16,'Entry Cr&Dr'!$J$18,"") ->  | H16: =IF(H2=$B$16,'Entry Cr&Dr'!$J$18,"") ->  | I16: =IF(I2=$B$16,'Entry Cr&Dr'!$J$18,"") ->  | J16: =IF(J2=$B$16,'Entry Cr&Dr'!$J$18,"") ->  | K16: =IF(K2=$B$16,'Entry Cr&Dr'!$J$18,"") ->  | L16: =IF(L2=$B$16,'Entry Cr&Dr'!$J$18,"") ->  | M16: =IF(M2=$B$16,'Entry Cr&Dr'!$J$18,"") ->  | N16: =IF(N2=$B$16,'Entry Cr&Dr'!$J$18,"") ->  | O16: =IF(O2=$B$16,'Entry Cr&Dr'!$J$18,"") ->  | P16: 0.00 | R16: 0.00
A17: ='Entry Cr&Dr'!G19 -> 00:00:00 | B17: ='Entry Cr&Dr'!H19 -> 0 | C17: ='Entry Cr&Dr'!I19 -> 0 | D17: =IF(D2=$B$17,'Entry Cr&Dr'!$J$19,"") ->  | E17: =IF(E2=$B$17,'Entry Cr&Dr'!$J$19,"") ->  | F17: =IF(F2=$B$17,'Entry Cr&Dr'!$J$19,"") ->  | G17: =IF(G2=$B$17,'Entry Cr&Dr'!$J$19,"") ->  | H17: =IF(H2=$B$17,'Entry Cr&Dr'!$J$19,"") ->  | I17: =IF(I2=$B$17,'Entry Cr&Dr'!$J$19,"") ->  | J17: =IF(J2=$B$17,'Entry Cr&Dr'!$J$19,"") ->  | K17: =IF(K2=$B$17,'Entry Cr&Dr'!$J$19,"") ->  | L17: =IF(L2=$B$17,'Entry Cr&Dr'!$J$19,"") ->  | M17: =IF(M2=$B$17,'Entry Cr&Dr'!$J$19,"") ->  | N17: =IF(N2=$B$17,'Entry Cr&Dr'!$J$19,"") ->  | O17: =IF(O2=$B$17,'Entry Cr&Dr'!$J$19,"") ->  | P17: 0.00 | R17: 0.00
A18: ='Entry Cr&Dr'!G20 -> 00:00:00 | B18: ='Entry Cr&Dr'!H20 -> 0 | C18: ='Entry Cr&Dr'!I20 -> 0 | D18: =IF(D2=$B$18,'Entry Cr&Dr'!$J$20,"") ->  | E18: =IF(E2=$B$18,'Entry Cr&Dr'!$J$20,"") ->  | F18: =IF(F2=$B$18,'Entry Cr&Dr'!$J$20,"") ->  | G18: =IF(G2=$B$18,'Entry Cr&Dr'!$J$20,"") ->  | H18: =IF(H2=$B$18,'Entry Cr&Dr'!$J$20,"") ->  | I18: =IF(I2=$B$18,'Entry Cr&Dr'!$J$20,"") ->  | J18: =IF(J2=$B$18,'Entry Cr&Dr'!$J$20,"") ->  | K18: =IF(K2=$B$18,'Entry Cr&Dr'!$J$20,"") ->  | L18: =IF(L2=$B$18,'Entry Cr&Dr'!$J$20,"") ->  | M18: =IF(M2=$B$18,'Entry Cr&Dr'!$J$20,"") ->  | N18: =IF(N2=$B$18,'Entry Cr&Dr'!$J$20,"") ->  | O18: =IF(O2=$B$18,'Entry Cr&Dr'!$J$20,"") ->  | P18: 0.00 | R18: 0.00
A19: ='Entry Cr&Dr'!G21 -> 00:00:00 | B19: ='Entry Cr&Dr'!H21 -> 0 | C19: ='Entry Cr&Dr'!I21 -> 0 | D19: =IF(D2=$B$19,'Entry Cr&Dr'!$J$21,"") ->  | E19: =IF(E2=$B$19,'Entry Cr&Dr'!$J$21,"") ->  | F19: =IF(F2=$B$19,'Entry Cr&Dr'!$J$21,"") ->  | G19: =IF(G2=$B$19,'Entry Cr&Dr'!$J$21,"") ->  | H19: =IF(H2=$B$19,'Entry Cr&Dr'!$J$21,"") ->  | I19: =IF(I2=$B$19,'Entry Cr&Dr'!$J$21,"") ->  | J19: =IF(J2=$B$19,'Entry Cr&Dr'!$J$21,"") ->  | K19: =IF(K2=$B$19,'Entry Cr&Dr'!$J$21,"") ->  | L19: =IF(L2=$B$19,'Entry Cr&Dr'!$J$21,"") ->  | M19: =IF(M2=$B$19,'Entry Cr&Dr'!$J$21,"") ->  | N19: =IF(N2=$B$19,'Entry Cr&Dr'!$J$21,"") ->  | O19: =IF(O2=$B$19,'Entry Cr&Dr'!$J$21,"") ->  | P19: 0.00 | R19: 0.00
A20: ='Entry Cr&Dr'!G22 -> 00:00:00 | B20: ='Entry Cr&Dr'!H22 -> 0 | C20: ='Entry Cr&Dr'!I22 -> 0 | D20: =IF(D2=$B$20,'Entry Cr&Dr'!$J$22,"") ->  | E20: =IF(E2=$B$20,'Entry Cr&Dr'!$J$22,"") ->  | F20: =IF(F2=$B$20,'Entry Cr&Dr'!$J$22,"") ->  | G20: =IF(G2=$B$20,'Entry Cr&Dr'!$J$22,"") ->  | H20: =IF(H2=$B$20,'Entry Cr&Dr'!$J$22,"") ->  | I20: =IF(I2=$B$20,'Entry Cr&Dr'!$J$22,"") ->  | J20: =IF(J2=$B$20,'Entry Cr&Dr'!$J$22,"") ->  | K20: =IF(K2=$B$20,'Entry Cr&Dr'!$J$22,"") ->  | L20: =IF(L2=$B$20,'Entry Cr&Dr'!$J$22,"") ->  | M20: =IF(M2=$B$20,'Entry Cr&Dr'!$J$22,"") ->  | N20: =IF(N2=$B$20,'Entry Cr&Dr'!$J$22,"") ->  | O20: =IF(O2=$B$20,'Entry Cr&Dr'!$J$22,"") ->  | P20: 0.00 | R20: 0.00
A21: ='Entry Cr&Dr'!G23 -> 00:00:00 | B21: ='Entry Cr&Dr'!H23 -> 0 | C21: ='Entry Cr&Dr'!I23 -> 0 | D21: =IF(D2=$B$21,'Entry Cr&Dr'!$J$23,"") ->  | E21: =IF(E2=$B$21,'Entry Cr&Dr'!$J$23,"") ->  | F21: =IF(F2=$B$21,'Entry Cr&Dr'!$J$23,"") ->  | G21: =IF(G2=$B$21,'Entry Cr&Dr'!$J$23,"") ->  | H21: =IF(H2=$B$21,'Entry Cr&Dr'!$J$23,"") ->  | I21: =IF(I2=$B$21,'Entry Cr&Dr'!$J$23,"") ->  | J21: =IF(J2=$B$21,'Entry Cr&Dr'!$J$23,"") ->  | K21: =IF(K2=$B$21,'Entry Cr&Dr'!$J$23,"") ->  | L21: =IF(L2=$B$21,'Entry Cr&Dr'!$J$23,"") ->  | M21: =IF(M2=$B$21,'Entry Cr&Dr'!$J$23,"") ->  | N21: =IF(N2=$B$21,'Entry Cr&Dr'!$J$23,"") ->  | O21: =IF(O2=$B$21,'Entry Cr&Dr'!$J$23,"") ->  | P21: 0.00 | R21: 0.00
A22: ='Entry Cr&Dr'!G24 -> 00:00:00 | B22: ='Entry Cr&Dr'!H24 -> 0 | C22: ='Entry Cr&Dr'!I24 -> 0 | D22: =IF(D2=$B$22,'Entry Cr&Dr'!$J$24,"") ->  | E22: =IF(E2=$B$22,'Entry Cr&Dr'!$J$24,"") ->  | F22: =IF(F2=$B$22,'Entry Cr&Dr'!$J$24,"") ->  | G22: =IF(G2=$B$22,'Entry Cr&Dr'!$J$24,"") ->  | H22: =IF(H2=$B$22,'Entry Cr&Dr'!$J$24,"") ->  | I22: =IF(I2=$B$22,'Entry Cr&Dr'!$J$24,"") ->  | J22: =IF(J2=$B$22,'Entry Cr&Dr'!$J$24,"") ->  | K22: =IF(K2=$B$22,'Entry Cr&Dr'!$J$24,"") ->  | L22: =IF(L2=$B$22,'Entry Cr&Dr'!$J$24,"") ->  | M22: =IF(M2=$B$22,'Entry Cr&Dr'!$J$24,"") ->  | N22: =IF(N2=$B$22,'Entry Cr&Dr'!$J$24,"") ->  | O22: =IF(O2=$B$22,'Entry Cr&Dr'!$J$24,"") ->  | P22: 0.00 | R22: 0.00
A23: ='Entry Cr&Dr'!G25 -> 00:00:00 | B23: ='Entry Cr&Dr'!H25 -> 0 | C23: ='Entry Cr&Dr'!I25 -> 0 | D23: =IF(D2=$B$23,'Entry Cr&Dr'!$J$25,"") ->  | E23: =IF(E2=$B$23,'Entry Cr&Dr'!$J$25,"") ->  | F23: =IF(F2=$B$23,'Entry Cr&Dr'!$J$25,"") ->  | G23: =IF(G2=$B$23,'Entry Cr&Dr'!$J$25,"") ->  | H23: =IF(H2=$B$23,'Entry Cr&Dr'!$J$25,"") ->  | I23: =IF(I2=$B$23,'Entry Cr&Dr'!$J$25,"") ->  | J23: =IF(J2=$B$23,'Entry Cr&Dr'!$J$25,"") ->  | K23: =IF(K2=$B$23,'Entry Cr&Dr'!$J$25,"") ->  | L23: =IF(L2=$B$23,'Entry Cr&Dr'!$J$25,"") ->  | M23: =IF(M2=$B$23,'Entry Cr&Dr'!$J$25,"") ->  | N23: =IF(N2=$B$23,'Entry Cr&Dr'!$J$25,"") ->  | O23: =IF(O2=$B$23,'Entry Cr&Dr'!$J$25,"") ->  | P23: 0.00 | R23: 0.00
A24: ='Entry Cr&Dr'!G26 -> 00:00:00 | B24: ='Entry Cr&Dr'!H26 -> 0 | C24: ='Entry Cr&Dr'!I26 -> 0 | D24: =IF(D2=$B$24,'Entry Cr&Dr'!$J$26,"") ->  | E24: =IF(E2=$B$24,'Entry Cr&Dr'!$J$26,"") ->  | F24: =IF(F2=$B$24,'Entry Cr&Dr'!$J$26,"") ->  | G24: =IF(G2=$B$24,'Entry Cr&Dr'!$J$26,"") ->  | H24: =IF(H2=$B$24,'Entry Cr&Dr'!$J$26,"") ->  | I24: =IF(I2=$B$24,'Entry Cr&Dr'!$J$26,"") ->  | J24: =IF(J2=$B$24,'Entry Cr&Dr'!$J$26,"") ->  | K24: =IF(K2=$B$24,'Entry Cr&Dr'!$J$26,"") ->  | L24: =IF(L2=$B$24,'Entry Cr&Dr'!$J$26,"") ->  | M24: =IF(M2=$B$24,'Entry Cr&Dr'!$J$26,"") ->  | N24: =IF(N2=$B$24,'Entry Cr&Dr'!$J$26,"") ->  | O24: =IF(O2=$B$24,'Entry Cr&Dr'!$J$26,"") ->  | P24: 0.00 | R24: 0.00
A26: खर्च | D26: =SUM(D3:D24) -> 5500.00 | E26: =SUM(E3:E24) -> 0.00 | F26: 0.00 | G26: 0.00 | H26: 0.00 | I26: 0.00 | J26: 0.00 | K26: 0.00 | L26: 0.00 | M26: 0.00 | N26: 0.00 | O26: 0.00 | P26: 5500.00 | Q26: 0.00 | R26: 5500.00
A27: शेष | D27: =D28-D26 -> 45000.00 | E27: =E28-E26 -> 10226.40 | F27: 500.00 | G27: 3252.00 | H27: 60663.42 | I27: 3600.00 | J27: 7150.00 | K27: 20740.00 | L27: 10000.00 | M27: 0.00 | N27: 3526.00 | O27: 32824.72 | P27: 197482.54 | Q27: 550.00 | R27: 196932.54
A28: योग | D28: =Receipt!D28 -> 50500.00 | E28: =Receipt!E28 -> 10226.40 | F28: =Receipt!F28 -> 500.00 | G28: =Receipt!G28 -> 3252.00 | H28: =Receipt!H28 -> 60663.42 | I28: =Receipt!I28 -> 3600.00 | J28: =Receipt!J28 -> 7150.00 | K28: =Receipt!K28 -> 20740.00 | L28: =Receipt!L28 -> 10000.00 | M28: =Receipt!M28 -> 0.00 | N28: =Receipt!N28 -> 3526.00 | O28: =Receipt!O28 -> 32824.72 | P28: =Receipt!P28 -> 202982.54 | Q28: =Receipt!Q28 -> 550.00 | R28: =Receipt!R28 -> 202432.54
